bitfinex/quotes_ETHUSD_20220111
["timestamp","ask_amount","ask_price","bid_price","bid_amount"]
[1641903680503,0.00113685,3134.4,3134.0,2.82048098]
[1641903680705,0.00113685,3134.4,3134.3,2.28433729]
[1641903680901,0.471,3135.0,3134.3,2.56073723]
[1641903680902,0.00341054,3134.8,3134.3,2.56073723]
[1641903681104,0.007,3135.0,3134.3,0.27639994]
[1641903681501,0.00397896,3134.9,3134.6,1.31164354]
[1641903681901,0.007,3135.0,3134.6,1.31164354]
[1641903681902,0.00341054,3134.8,3134.6,1.31164354]
[1641903682104,0.00341054,3134.8,3134.7,0.70236231]
[1641903682307,0.007,3135.0,3134.7,3.65281067]
[1641903682503,0.007,3135.0,3134.7,0.70236231]
[1641903682706,0.00397896,3134.9,3134.7,0.70236231]
[1641903682901,0.00397896,3134.9,3134.7,0.60236231]
[1641903683103,0.00341054,3134.8,3134.7,0.60236231]
[1641903683300,0.00341054,3134.8,3134.7,2.19735321]
[1641903683502,0.00341054,3134.8,3134.7,2.99485321]
[1641903683700,0.00341054,3134.8,3134.7,1.60236231]
[1641903684147,0.00341054,3134.8,3134.7,0.60236231]
[1641903684348,0.007,3135.3,3134.7,0.60236231]
[1641903684547,0.007,3135.3,3135.2,2.0009326]
[1641903687551,1.2342615,3136.2,3135.3,6.8]
[1641903687804,1.2342615,3136.2,3135.4,2.95044836]
[1641903688003,0.00454739,3135.6,3135.4,1.3]
[1641903688200,1.2342615,3136.2,3136.1,1.26828034]
[1641903689306,6.15e-05,3136.2,3136.1,1.26828034]
[1641903689500,0.9350113,3136.4,3136.0,0.68426892]
[1641903689703,0.9350113,3136.4,3135.6,2.5944565]
[1641903689704,0.9350113,3136.4,3135.4,3.9102]
[1641903689904,0.9350113,3136.4,3136.1,2.71026806]
[1641903690502,0.9350113,3136.4,3135.7,1.51293351]
[1641903690699,0.9350113,3136.4,3136.0,0.67282506]
[1641903691452,0.9350113,3136.4,3136.2,2.71026806]
[1641903692055,0.9350113,3136.4,3136.0,2.71026806]
[1641903692652,0.9350113,3136.4,3135.7,0.92458775]
[1641903693054,0.79747,3136.3,3136.1,2.71026806]
[1641903693456,0.00341054,3136.2,3135.7,1.51293351]
[1641903693855,0.9350113,3136.4,3135.6,2.71026806]
[1641903693856,0.00284211,3136.1,3135.6,4.22320157]
[1641903694257,0.00227369,3136.0,3135.6,4.22320157]
[1641903694755,0.00170527,3135.9,3135.8,0.68958767]
[1641903695231,0.00397896,3135.9,3135.8,0.68958767]
[1641903696220,0.00397896,3135.9,3135.8,3.39985573]
[1641903696421,0.00397896,3135.9,3135.8,2.71026806]
[1641903696823,0.00397896,3135.9,3135.7,2.71026806]
[1641903697220,0.00113684,3135.8,3135.7,2.71026806]
[1641903697822,0.00113684,3135.8,3135.6,4.22320157]
[1641903698422,0.00113684,3135.8,3135.7,6.31026806]
[1641903698622,0.00113684,3135.8,3135.7,2.71026806]
[1641903699959,0.00113684,3135.8,3135.7,1.5125963]
[1641903700556,2.35113684,3135.8,3135.7,1.5125963]
[1641903701556,6.66513684,3135.8,3135.7,1.5125963]
[1641903701957,2.81513684,3135.8,3135.3,2.71026806]
[1641903702165,0.7977,3135.6,3135.3,2.71026806]
[1641903702359,3.164,3135.5,3135.4,0.00113684]
[1641903703104,3.164,3135.5,3135.2,0.0022737]
[1641903703302,0.464,3135.5,3135.2,0.0022737]
[1641903703503,0.464,3135.5,3135.4,2.71026806]
[1641903703906,0.464,3135.5,3135.4,2.71140491]
[1641903704209,0.464,3135.5,3135.4,0.00113685]
[1641903704605,0.464,3135.5,3135.2,0.0022737]
[1641903704810,0.464,3135.5,3135.4,2.71026806]
[1641903705305,0.464,3135.5,3135.4,2.71140491]
[1641903705505,0.464,3135.5,3135.4,0.00113685]
[1641903705707,2.05948,3135.5,3135.4,0.00113685]
[1641903705908,2.05948,3135.5,3135.2,1.5125963]
[1641903705909,6.8,3135.4,3135.2,1.5125963]
[1641903706106,6.8,3135.4,3135.0,2.26940027]
[1641903706107,0.00471418,3135.2,3135.0,2.26940027]
[1641903706305,6.8,3135.1,3134.7,3.02673809]
[1641903706557,0.79806,3134.9,3134.7,3.02673809]
[1641903706759,7.264,3134.8,3134.7,3.02673809]
[1641903706958,8.2057,3134.8,3134.7,3.02673809]
[1641903707162,9.5057,3134.8,3134.7,3.03071705]
[1641903707364,9.5057,3134.8,3134.7,0.00397896]
[1641903707761,2.7057,3134.8,3134.0,0.00795793]
[1641903707959,0.79791,3134.5,3134.0,0.00795793]
[1641903708158,0.464,3134.4,3134.0,0.00795793]
[1641903708359,0.464,3134.4,3133.9,0.00852635]
[1641903708963,1.1503,3134.4,3133.9,2.97520655]
[1641903709161,1.5958195,3135.6,3133.9,2.97520655]
[1641903709162,0.00113684,3135.8,3134.3,6.8124123]
[1641903709363,0.00113684,3135.8,3135.0,0.01285129]
[1641903709560,0.00113684,3135.8,3134.4,4.10626443]
[1641903709561,0.00170527,3135.7,3134.4,4.10626443]
[1641903709760,0.464,3135.6,3135.1,0.00170527]
[1641903709966,0.464,3135.6,3134.6,3.02673809]
[1641903709967,0.46513685,3135.6,3134.6,3.02673809]
[1641903710207,0.79778,3135.1,3134.6,3.02673809]
[1641903710601,0.79778,3135.1,3134.5,0.00511581]
[1641903710800,0.464,3135.0,3134.5,0.00511581]
[1641903711003,0.3,3134.9,3134.4,0.00568423]
[1641903711201,0.464,3134.8,3134.4,0.00568423]
[1641903711403,3.61320476,3134.8,3134.4,0.00568423]
[1641903711701,0.3,3134.7,3134.1,0.0073895]
[1641903711902,0.464,3134.6,3134.1,0.0073895]
[1641903712303,0.464,3134.6,3133.6,0.01023162]
[1641903712707,0.79802,3134.4,3133.6,0.01023162]
[1641903712903,0.79802,3134.4,3133.6,3.03696971]
[1641903713303,1.26202,3134.4,3133.7,0.0096632]
[1641903713703,4.69316692,3134.4,3133.7,0.0096632]
[1641903713949,0.79817,3134.0,3133.7,0.0096632]
[1641903714150,1.26217,3134.0,3133.7,0.0096632]
[1641903714550,0.464,3134.0,3133.7,0.0096632]
[1641903714749,0.464,3134.0,3133.6,0.01023162]
[1641903715153,1.0,3134.2,3133.6,0.01023162]
[1641903715349,2.49980438,3134.3,3133.6,0.01023162]
[1641903716049,2.49980438,3134.3,3134.0,1.51689962]
[1641903716454,2.49980438,3134.3,3134.1,0.0073895]
[1641903717051,2.49980438,3134.3,3134.0,0.00795793]
[1641903717451,1.89145672,3134.7,3134.0,0.00795793]
[1641903717717,0.73215672,3134.7,3134.0,0.00795793]
[1641903718102,1.73215672,3134.7,3134.0,1.33245545]
[1641903718302,1.73215672,3134.7,3134.0,0.00795793]
[1641903718504,1.73215672,3134.7,3134.1,0.0073895]
[1641903718702,5.73003672,3134.7,3134.1,1.51689962]
[1641903719103,5.73003672,3134.7,3134.2,0.00682108]
[1641903719704,6.11001977,3134.7,3134.2,0.00682108]
[1641903719904,6.11001977,3134.7,3134.1,0.0073895]
[1641903720506,5.81001977,3134.7,3134.1,1.52428912]
[1641903720705,5.73003672,3134.7,3134.1,1.52428912]
[1641903720905,5.73003672,3134.7,3134.2,0.00682108]
[1641903721552,6.82808212,3134.7,3134.2,0.00682108]
[1641903721752,0.79803,3134.5,3134.2,0.00682108]
[1641903722253,0.79803,3134.5,3134.0,0.00795793]
[1641903722452,1.0,3134.6,3134.0,0.00795793]
[1641903722653,4.01213977,3134.7,3134.0,0.00795793]
[1641903722859,4.01213977,3134.7,3133.9,0.00852635]
[1641903723054,0.79795,3134.5,3133.9,0.00852635]
[1641903723653,0.79795,3134.5,3134.0,1.51689962]
[1641903724055,0.464,3134.4,3134.1,0.0073895]
[1641903724258,0.464,3134.4,3133.9,1.5174208]
[1641903724259,4.69823,3134.0,3133.9,1.5174208]
[1641903724458,5.16223,3134.0,3133.6,2.28023577]
[1641903724657,8.1,3133.9,3133.6,2.28023577]
[1641903724854,8.1,3133.9,3133.3,2.28023577]
[1641903724855,0.464,3133.8,3133.3,2.28023577]
[1641903725307,0.464,3133.8,3133.4,0.00397897]
[1641903726112,0.464,3133.8,3133.2,0.00511582]
[1641903726307,0.79832,3133.5,3133.2,0.00511582]
[1641903726508,0.464,3133.4,3133.2,0.00511582]
[1641903726805,0.464,3133.4,3133.3,2.71210524]
[1641903727306,0.464,3133.4,3133.3,2.71665263]
[1641903728206,4.064,3133.4,3133.3,2.71665263]
[1641903728604,0.464,3133.4,3133.3,2.71665263]
[1641903729253,3.214,3133.4,3133.3,2.71665263]
[1641903729753,3.664,3133.4,3133.3,2.71665263]
[1641903730356,4.664,3133.4,3133.3,2.71665263]
[1641903730560,4.664,3133.4,3132.8,2.28023577]
[1641903730561,0.79839,3133.1,3132.8,2.28023577]
[1641903730757,0.464,3133.0,3132.8,2.28023577]
[1641903730957,0.464,3133.0,3132.9,0.0022737]
[1641903731163,5.264,3133.0,3132.9,0.0022737]
[1641903731359,6.6,3132.9,3132.8,2.28023577]
[1641903731656,7.99306471,3132.9,3132.8,2.28023577]
[1641903731857,6.8,3132.8,3132.6,3.02673809]
[1641903732057,0.464,3132.7,3132.6,3.02673809]
[1641903732257,4.77914,3132.7,3132.6,3.02673809]
[1641903732707,4.77914,3132.7,3132.1,3.02673809]
[1641903733108,0.79851,3132.4,3132.2,0.00397896]
[1641903733303,1.53316351,3132.4,3132.2,0.00397896]
[1641903733904,3.68156351,3132.4,3132.2,0.00397896]
[1641903734103,1.1484,3132.4,3132.2,0.00397896]
[1641903734702,1.1484,3132.4,3132.3,1.5268084]
[1641903734905,1.6124,3132.4,3132.3,1.5268084]
[1641903735205,1.6124,3132.4,3132.3,1.53021894]
[1641903735206,1.9124,3132.4,3132.3,1.53021894]
[1641903735404,2.9124,3132.4,3132.3,0.00341054]
[1641903735708,3.71091,3132.4,3132.3,0.00341054]
[1641903735903,3.71091,3132.4,3132.3,1.52664558]
[1641903736103,3.71091,3132.4,3132.3,1.53005612]
[1641903736959,2.11091,3132.4,3132.3,1.53005612]
[1641903737150,2.50094541,3132.7,3132.3,1.53005612]
[1641903737548,2.50094541,3132.7,3132.4,0.00284211]
[1641903737948,2.50094541,3132.7,3132.0,3.02673809]
[1641903737949,2.50094541,3132.7,3132.0,3.0318539]
[1641903738149,4.09792541,3132.7,3132.1,0.00454738]
[1641903738649,2.50094541,3132.7,3132.4,1.52825445]
[1641903738851,2.80094541,3132.7,3132.4,1.52825445]
[1641903739048,2.50094541,3132.7,3132.5,0.00227369]
[1641903739262,0.79839,3132.8,3132.5,0.00227369]
[1641903739448,3.2,3132.7,3132.5,1.53052814]
[1641903739849,3.2,3132.7,3132.6,0.00170527]
[1641903740052,3.2,3132.7,3132.6,1.52995972]
[1641903741700,6.09699,3132.7,3132.6,1.52995972]
[1641903741901,6.09699,3132.7,3132.6,0.00170527]
[1641903742702,5.09699,3132.7,3132.6,0.00170527]
[1641903742903,5.09699,3132.7,3132.4,0.00284211]
[1641903742904,3.2,3132.7,3132.4,0.00284211]
[1641903743205,3.2,3132.7,3132.4,1.53109656]
[1641903743602,3.2,3132.7,3132.5,0.00227369]
[1641903744252,3.2,3132.7,3132.6,2.28899003]
[1641903744651,3.2,3132.7,3132.6,2.2906953]
[1641903744952,3.2,3132.7,3132.6,0.00170527]
[1641903745352,3.2,3132.7,3132.5,0.00227369]
[1641903745753,3.2,3132.7,3132.6,2.2890275]
[1641903746153,3.2,3132.7,3132.6,2.29073277]
[1641903746953,3.2,3132.7,3132.6,3.8179892]
[1641903747155,3.2,3132.7,3132.6,1.5289617]
[1641903748806,3.664,3132.7,3132.6,1.5289617]
[1641903749201,4.664,3132.7,3132.6,1.5289617]
[1641903749602,4.664,3132.7,3132.6,0.00170527]
[1641903750005,4.664,3132.7,3132.3,0.00341054]
[1641903750405,1.59709,3132.5,3132.3,0.00341054]
[1641903750605,1.59709,3132.5,3132.1,1.52725643]
[1641903750606,6.25,3132.3,3132.1,1.52725643]
[1641903750804,0.464,3132.3,3132.1,1.52725643]
[1641903751209,0.464,3132.3,3132.0,1.52725643]
[1641903751653,0.464,3132.3,3132.1,0.00113684]
[1641903752255,0.79866,3132.2,3132.1,0.00113684]
[1641903753762,0.79866,3132.2,3132.1,2.71403005]
[1641903753959,0.79866,3132.2,3132.0,1.52725643]
[1641903753960,7.66344357,3132.1,3132.0,1.52725643]
[1641903754161,14.31558645,3132.1,3132.0,1.52725643]
[1641903754560,0.79882,3131.8,3131.6,3.02673809]
[1641903754864,6.614,3131.7,3131.1,1.206]
[1641903755225,1.59766,3131.4,3131.2,0.00511581]
[1641903755619,1.59766,3131.4,3130.9,0.00682109]
[1641903756716,0.79882,3131.3,3130.9,0.00682109]
[1641903757115,0.79882,3131.3,3131.0,3.02673809]
[1641903757517,0.79882,3131.3,3131.1,0.00568424]
[1641903757918,0.79882,3131.3,3131.0,0.00625266]
[1641903758119,1.61872,3131.3,3131.0,0.00625266]
[1641903758517,1.61872,3131.3,3130.9,0.00682109]
[1641903759052,5.86097999,3131.4,3130.9,0.00682109]
[1641903759257,5.82677999,3131.4,3130.9,0.00682109]
[1641903759452,2.50198205,3131.2,3130.9,0.00682109]
[1641903759654,0.71166184,3131.3,3130.9,0.00682109]
[1641903760254,3.4488193,3131.9,3130.9,0.00682109]
[1641903760455,0.83402071,3131.5,3130.9,0.00682109]
[1641903760754,0.464,3131.4,3130.9,0.00682109]
[1641903761556,0.79882,3131.3,3130.9,0.00682109]
[1641903761961,0.473982,3131.3,3130.9,0.00682109]
[1641903762355,0.473982,3131.3,3130.9,5.13224047]
[1641903762826,0.473982,3131.3,3131.0,5.13167204]
[1641903763219,5.45,3131.2,3131.0,2.62940362]
[1641903763423,8.5619,3131.1,3131.0,2.62940362]
[1641903763623,8.8619,3131.1,3131.0,2.62940362]
[1641903763821,10.3345,3131.1,3131.0,2.60200287]
[1641903764026,6.8,3131.0,3130.8,1.08444498]
[1641903764222,7.264,3130.9,3130.8,1.08444498]
[1641903764620,9.23475681,3130.9,3130.8,1.08444498]
[1641903764822,9.53475681,3130.9,3130.8,1.05020363]
[1641903765020,9.53475681,3130.9,3130.8,0.98620363]
[1641903765922,6.8,3130.8,3130.2,3.8776]
[1641903766121,0.79905,3130.5,3130.1,1.1493]
[1641903766323,1.59809,3130.6,3129.4,10.47634101]
[1641903766324,1.59809,3130.6,3130.3,0.00454739]
[1641903766567,1.89809,3130.6,3130.3,0.00454739]
[1641903766860,1.89809,3130.6,3129.4,14.31794101]
[1641903766861,0.764,3130.5,3129.5,0.00909477]
[1641903767067,1.764,3130.5,3129.5,0.00909477]
[1641903767260,0.79908,3130.1,3129.5,0.00909477]
[1641903767460,1.26308,3130.1,3129.5,0.00909477]
[1641903767660,1.99562841,3130.1,3129.5,0.00909477]
[1641903768060,1.99562841,3130.1,3129.3,0.01023162]
[1641903768662,2.59562841,3130.1,3129.3,0.01023162]
[1641903768861,0.7992,3129.7,3129.2,0.01080004]
[1641903769761,0.7992,3129.7,3128.9,0.01250531]
[1641903769962,0.7992,3129.7,3129.3,5.18206978]
[1641903770201,0.73254841,3130.1,3129.4,0.01489956]
[1641903770402,3.2,3129.7,3129.4,0.02456276]
[1641903770601,3.2,3129.7,3129.5,0.00909477]
[1641903771002,3.9992,3129.7,3129.4,0.0096632]
[1641903772601,3.9992,3129.7,3129.3,0.01023162]
[1641903773002,3.9992,3129.7,3129.3,5.1923014]
[1641903773404,3.9992,3129.7,3129.4,0.0096632]
[1641903773803,5.89862,3129.5,3129.4,0.0096632]
[1641903774051,6.36262,3129.5,3129.4,0.0096632]
[1641903774459,2.36262,3129.5,3129.4,0.0096632]
[1641903774752,2.36262,3129.5,3129.3,0.01023162]
[1641903774952,0.7993,3129.4,3129.3,0.01023162]
[1641903775151,1.2633,3129.4,3129.3,0.01023162]
[1641903775353,1.2633,3129.4,3129.1,0.01136847]
[1641903775751,0.3,3129.4,3129.1,0.01136847]
[1641903775954,4.52123695,3129.7,3129.1,0.01136847]
[1641903775955,0.3,3129.6,3129.1,0.01136847]
[1641903776151,1.764,3129.6,3129.3,1.5611053]
[1641903776354,0.464,3129.6,3129.3,1.5611053]
[1641903776552,1.59862,3129.5,3129.4,0.0096632]
[1641903776752,2.06262,3129.5,3129.4,0.0096632]
[1641903777159,2.36262,3129.5,3129.4,0.0096632]
[1641903777352,2.36262,3129.5,3129.3,0.01023162]
[1641903777552,2.06262,3129.5,3129.3,0.01023162]
[1641903779213,2.06262,3129.5,3129.3,1.57133692]
[1641903779617,2.06262,3129.5,3129.4,0.0096632]
[1641903780415,3.66262,3129.5,3129.3,0.01023162]
[1641903781115,0.7993,3129.4,3129.3,0.01023162]
[1641903781314,1.2633,3129.4,3129.3,0.01023162]
[1641903781557,0.464,3129.4,3129.2,0.01080004]
[1641903781754,2.0178488,3129.7,3129.2,2.77725846]
[1641903781955,2.0178488,3129.7,3129.3,0.03659835]
[1641903782162,2.0178488,3129.7,3129.3,0.04682997]
[1641903782356,2.0178488,3129.7,3129.5,0.01764644]
[1641903782557,2.0178488,3129.7,3129.5,1.57875174]
[1641903782756,2.0178488,3129.7,3129.6,0.00852635]
[1641903783557,2.0178488,3129.7,3129.6,1.56963165]
[1641903783956,2.0178488,3129.7,3129.6,0.00852635]
[1641903784356,2.0178488,3129.7,3129.5,0.00909477]
[1641903784862,2.0178488,3129.7,3129.5,1.57020007]
[1641903785300,2.0178488,3129.7,3129.6,0.00852635]
[1641903787004,2.0178488,3129.7,3129.6,1.56963165]
[1641903789356,2.0178488,3129.7,3129.6,2.7234666]
[1641903789556,7.2678488,3129.7,3129.6,2.7234666]
[1641903789759,6.2678488,3129.7,3129.6,2.7234666]
[1641903789956,7.2678488,3129.7,3129.6,2.7234666]
[1641903790557,7.7318488,3129.7,3129.6,2.7234666]
[1641903790860,7.1,3129.6,3129.1,1.5611053]
[1641903791056,0.79937,3129.4,3129.1,1.5611053]
[1641903791257,0.464,3129.3,3129.2,0.00227369]
[1641903791858,0.764,3129.3,3129.2,0.00227369]
[1641903792259,0.764,3129.3,3129.0,0.00341054]
[1641903792458,1.59885,3129.2,3129.0,0.00341054]
[1641903792718,5.464,3129.1,3129.0,0.00341054]
[1641903792906,1.26342,3129.1,3129.0,0.00341054]
[1641903793207,1.26342,3129.1,3128.9,0.00397896]
[1641903793605,1.56342,3129.1,3128.9,0.00397896]
[1641903793804,1.56342,3129.1,3128.7,0.00511581]
[1641903794108,1.56342,3129.1,3128.8,1.5611053]
[1641903794606,1.56342,3129.1,3128.9,0.00397896]
[1641903794806,0.464,3129.1,3128.9,0.00397896]
[1641903795206,1.59859,3129.6,3128.9,0.00397896]
[1641903795413,0.464,3129.5,3128.7,0.00511581]
[1641903795906,0.464,3129.5,3129.1,10.0]
[1641903796107,0.464,3129.5,3129.2,0.03605336]
[1641903796562,0.79927,3129.4,3129.3,0.00170527]
[1641903796755,1.26327,3129.4,3129.3,0.00170527]
[1641903796955,0.464,3129.4,3129.3,0.00170527]
[1641903798354,2.85236752,3129.7,3129.4,0.928]
[1641903798555,3.31636752,3129.7,3129.3,0.00170527]
[1641903799454,0.79926,3129.4,3129.3,0.00170527]
[1641903799857,1.26326,3129.4,3129.3,0.00170527]
[1641903800914,1.56326,3129.4,3129.3,0.00170527]
[1641903801317,3.96326,3129.4,3129.3,0.00170527]
[1641903801817,5.59306,3129.4,3129.3,0.00170527]
[1641903802020,6.19306,3129.4,3129.3,0.00170527]
[1641903803417,5.19306,3129.4,3129.3,0.00170527]
[1641903803618,2.19306,3129.4,3129.3,0.00170527]
[1641903803818,1.26326,3129.4,3129.3,0.00170527]
[1641903804051,1.26326,3129.4,3129.3,2.34336322]
[1641903804655,1.26326,3129.4,3129.3,0.00170527]
[1641903804852,1.26326,3129.4,3129.3,3.12373251]
[1641903805454,1.26326,3129.4,3129.3,0.00170527]
[1641903806656,1.56326,3129.4,3129.3,0.00170527]
[1641903807054,0.764,3129.4,3129.3,0.00170527]
[1641903807253,2.814,3129.4,3129.3,0.00170527]
[1641903807457,2.814,3129.4,3129.3,3.12373251]
[1641903808703,2.814,3129.4,3129.3,0.00170527]
[1641903809304,2.814,3129.4,3129.3,3.12373251]
[1641903809510,3.29122369,3129.4,3129.3,3.12373251]
[1641903809707,4.09049369,3129.4,3129.3,3.12373251]
[1641903809907,4.39049369,3129.4,3129.3,3.12373251]
[1641903810110,4.69049369,3129.4,3129.3,3.12373251]
[1641903810307,1.74049369,3129.4,3129.3,3.12373251]
[1641903810709,1.74049369,3129.4,3129.3,0.00170527]
[1641903810918,1.59858,3129.6,3129.3,0.00170527]
[1641903811210,0.464,3129.5,3129.3,3.12373251]
[1641903811652,0.464,3129.5,3129.4,0.00113685]
[1641903812252,3.414,3129.5,3129.4,0.00113685]
[1641903813053,3.714,3129.5,3129.4,0.00113685]
[1641903813254,4.014,3129.5,3129.4,0.00113685]
[1641903815058,0.464,3129.5,3129.4,0.00113685]
[1641903815302,1.26327,3129.5,3129.4,0.00113685]
[1641903817507,1.26327,3129.5,3129.4,3.12316409]
[1641903817803,0.464,3129.5,3129.4,3.12316409]
[1641903818609,0.464,3129.5,3129.4,0.00113685]
[1641903819853,0.464,3129.5,3129.4,1.40228841]
[1641903820057,2.85236752,3129.7,3129.5,0.02122624]
[1641903820058,2.0178488,3129.7,3129.5,0.02122624]
[1641903820256,2.0178488,3129.7,3129.4,7.09447214]
[1641903820454,2.0178488,3129.7,3129.4,5.69332058]
[1641903820653,2.0178488,3129.7,3129.4,2.71646183]
[1641903820853,2.0178488,3129.7,3129.6,2.71532498]
[1641903821454,2.0178488,3129.7,3129.5,4.27845384]
[1641903822902,3.464,3129.6,3129.5,4.27845384]
[1641903823101,3.464,3129.6,3129.5,2.71532498]
[1641903823505,0.764,3129.6,3129.5,2.71532498]
[1641903823908,0.764,3129.6,3129.4,0.00113685]
[1641903823909,15.006,3129.5,3129.4,0.00113685]
[1641903824102,15.47,3129.5,3129.4,0.00113685]
[1641903827756,15.47,3129.5,3129.1,0.00284212]
[1641903828551,15.47,3129.5,3129.0,0.00341054]
[1641903828953,16.26924,3129.5,3129.0,0.00341054]
[1641903829754,1.0,3129.4,3129.0,0.00341054]
[1641903829952,1.2634909,3129.3,3129.0,0.00341054]
[1641903830203,0.6,3129.2,3129.0,0.00341054]
[1641903830406,6.814,3129.1,3129.0,0.00341054]
[1641903830606,7.814,3129.1,3129.0,0.00341054]
[1641903830804,7.814,3129.1,3128.9,0.00397896]
[1641903831206,1.464,3129.1,3128.9,0.00397896]
[1641903831607,1.464,3129.1,3128.3,0.00738951]
[1641903832006,0.764,3129.1,3128.7,0.84295777]
[1641903832205,0.464,3129.1,3129.0,2.71532498]
[1641903832606,0.464,3129.1,3129.0,0.00341054]
[1641903833106,0.464,3129.1,3128.9,0.00397896]
[1641903833805,0.464,3129.1,3129.0,2.71532498]
[1641903834255,0.464,3129.1,3129.0,0.00341054]
[1641903834756,0.79938,3129.0,3128.7,0.00511581]
[1641903834957,1.53286715,3129.0,3128.7,0.00511581]
[1641903835158,0.73348715,3129.0,3128.7,0.00511581]
[1641903835357,0.73348715,3129.0,3128.5,0.00625266]
[1641903835557,0.73348715,3129.0,3128.8,2.71532498]
[1641903835957,0.73348715,3129.0,3128.9,0.00397896]
[1641903836559,0.73348715,3129.0,3128.7,0.00511581]
[1641903836758,0.73348715,3129.0,3128.9,2.71532498]
[1641903836759,1.03348715,3129.0,3128.9,2.71532498]
[1641903836963,4.28348715,3129.0,3128.9,2.71532498]
[1641903837159,4.28348715,3129.0,3128.9,2.71930394]
[1641903837359,5.38283715,3129.0,3128.9,0.00397896]
[1641903837559,5.84683715,3129.0,3128.9,0.00397896]
[1641903838005,6.84683715,3129.0,3128.9,0.00397896]
[1641903838205,6.84683715,3129.0,3128.9,0.00255196]
[1641903838406,2.29683715,3129.0,3128.9,2.71787694]
[1641903838604,3.29683715,3129.0,3128.9,2.71787694]
[1641903838807,2.59683715,3129.0,3128.9,2.71787694]
[1641903839206,2.59683715,3129.0,3128.9,0.00255196]
[1641903839409,3.59683715,3129.0,3128.9,0.00255196]
[1641903839613,3.59683715,3129.0,3128.2,0.00653093]
[1641903839808,0.79944,3128.7,3128.3,1.56312886]
[1641903840010,1.26344,3128.7,3128.3,1.56312886]
[1641903840211,1.56344,3128.7,3128.4,0.00539408]
[1641903840409,1.86344,3128.7,3128.4,0.00539408]
[1641903840608,1.86344,3128.7,3128.3,1.56312886]
[1641903840609,6.8,3128.6,3128.3,1.56312886]
[1641903840809,7.24969,3128.4,3128.3,1.56312886]
[1641903841007,7.71369,3128.4,3128.3,1.56312886]
[1641903841212,8.71369,3128.4,3128.3,1.31312886]
[1641903841652,0.01030091,3128.3,3128.1,2.34469329]
[1641903841852,6.664,3128.2,3128.1,2.34469329]
[1641903842057,6.664,3128.2,3128.0,10.0]
[1641903842058,4.29975,3128.1,3128.0,10.0]
[1641903842258,4.76375,3128.1,3128.0,10.0]
[1641903842453,5.76375,3128.1,3128.0,10.0022737]
[1641903842653,5.76375,3128.1,3128.0,3.6038137]
[1641903842654,8.55046508,3128.1,3128.0,3.6038137]
[1641903843053,5.7,3128.0,3127.3,10.40411959]
[1641903843253,1.62091304,3127.9,3127.3,6.41801959]
[1641903843456,0.7998,3127.6,3127.4,0.00341054]
[1641903843756,0.464,3127.5,3127.4,0.00341054]
[1641903844159,0.464,3127.5,3127.3,0.00397896]
[1641903844955,0.464,3127.5,3127.2,0.00454738]
[1641903846708,0.764,3127.5,3127.2,0.00454738]
[1641903846908,0.464,3127.5,3127.2,0.00454738]
[1641903847911,0.464,3127.5,3127.1,2.3498091]
[1641903848309,0.464,3127.5,3127.2,0.00454738]
[1641903849651,0.764,3127.5,3127.2,0.00454738]
[1641903850154,0.01069128,3127.4,3127.2,0.00454738]
[1641903850355,0.464,3127.8,3127.2,0.00454738]
[1641903850551,1.53474736,3128.0,3127.2,3.35465572]
[1641903850552,0.73509736,3128.0,3127.2,3.35465572]
[1641903850752,0.73509736,3128.0,3127.2,3.3592031]
[1641903850958,0.73509736,3128.0,3127.3,0.00397896]
[1641903851753,0.73509736,3128.0,3127.7,1.58495683]
[1641903852153,0.73509736,3128.0,3127.8,0.00113684]
[1641903852554,1.53471736,3128.0,3127.8,0.00113684]
[1641903853206,1.83471736,3128.0,3127.8,0.00113684]
[1641903853405,1.03509736,3128.0,3127.2,0.00454738]
[1641903853805,0.464,3127.9,3127.2,0.00454738]
[1641903854005,1.09971,3127.7,3127.2,0.00454738]
[1641903854205,0.79971,3127.7,3127.2,0.00454738]
[1641903854704,0.79971,3127.7,3127.0,0.00568423]
[1641903855505,1.09971,3127.7,3127.0,0.00568423]
[1641903855805,0.79971,3127.7,3127.1,2.71706266]
[1641903856208,0.79971,3127.7,3127.2,0.00454738]
[1641903857558,0.00668684,3127.6,3127.2,0.00454738]
[1641903857755,0.79971,3127.7,3127.0,0.00568423]
[1641903858651,0.79971,3127.7,3127.1,2.71706541]
[1641903859151,0.79971,3127.7,3127.2,0.00454738]
[1641903859551,0.79971,3127.7,3127.0,0.00568423]
[1641903859753,1.09971,3127.7,3127.0,0.00568423]
[1641903860604,1.09971,3127.7,3127.1,2.71735881]
[1641903860803,0.79971,3127.7,3127.1,2.71735881]
[1641903861008,0.79971,3127.7,3127.2,0.00454738]
[1641903861210,0.29971,3127.7,3127.2,0.00454738]
[1641903862007,0.29971,3127.7,3127.0,0.00568423]
[1641903862812,0.01017591,3127.6,3127.0,0.00568423]
[1641903863008,0.29971,3127.7,3127.0,0.00568423]
[1641903864554,0.464,3127.6,3127.0,0.00568423]
[1641903864756,1.29899826,3127.6,3127.0,0.00568423]
[1641903867158,3.2,3128.0,3127.5,1.09874031]
[1641903867356,3.2,3128.0,3127.6,2.84515512]
[1641903867557,3.2,3128.0,3127.5,1.09874031]
[1641903867817,3.2,3128.0,3127.6,2.73755479]
[1641903868409,3.2,3128.0,3127.7,0.00170527]
[1641903869110,3.2,3128.0,3127.3,0.00397896]
[1641903870012,3.2,3128.0,3127.4,2.71692285]
[1641903870213,3.2,3128.0,3127.5,2.68916831]
[1641903870411,3.2,3128.0,3127.5,2.69201042]
[1641903870616,3.2,3128.0,3127.6,0.00227369]
[1641903871010,3.2,3128.0,3127.9,1.58495683]
[1641903871765,3.2,3128.0,3127.9,2.71692285]
[1641903872164,3.2,3128.0,3127.9,1.58495683]
[1641903872865,3.2,3128.0,3127.9,2.71692285]
[1641903873567,3.2,3128.0,3127.9,1.58495683]
[1641903873964,3.2,3128.0,3127.9,4.30187968]
[1641903874365,3.2,3128.0,3127.9,2.71692285]
[1641903876107,3.2,3128.0,3127.9,1.57619526]
[1641903877008,3.2,3128.0,3127.7,2.34469329]
[1641903877208,3.2,3128.0,3127.8,2.34469329]
[1641903877405,3.2,3128.0,3127.8,2.34583013]
[1641903877805,3.2,3128.0,3127.8,2.75384418]